bitfinex/quotes_BTCUSD_20250211
["timestamp","ask_amount","ask_price","bid_price","bid_amount"]
[1739243170528,0.303506,97716.0,97715.0,0.03980913]
[1739243170669,0.41645436,97716.0,97715.0,0.03994236]
[1739243170869,0.41645436,97716.0,97715.0,0.00013323]
[1739243171912,0.42245436,97716.0,97715.0,0.00013323]
[1739243172577,0.42945436,97716.0,97715.0,0.00013323]
[1739243172955,0.41645436,97716.0,97715.0,0.00013323]
[1739243173301,0.5151096,97716.0,97715.0,0.00013323]
[1739243173730,0.43045436,97716.0,97715.0,0.00013323]
[1739243173915,0.43745436,97716.0,97715.0,0.00013323]
[1739243174324,0.43045436,97716.0,97715.0,0.00013323]
[1739243174506,0.41645436,97716.0,97715.0,0.00013323]
[1739243174735,0.43745436,97716.0,97715.0,0.00013323]
[1739243174932,0.5242096,97716.0,97715.0,0.00013323]
[1739243175353,0.5102096,97716.0,97715.0,0.00013323]
[1739243175474,0.5172096,97716.0,97715.0,0.00013323]
[1739243175670,0.5242096,97716.0,97715.0,0.00013323]
[1739243176141,0.5102096,97716.0,97715.0,0.00023983]
[1739243176316,0.5252096,97716.0,97715.0,0.00023983]
[1739243176725,0.6020096,97716.0,97715.0,0.00023983]
[1739243176920,0.5950096,97716.0,97715.0,0.00023983]
[1739243177342,0.6020096,97716.0,97715.0,0.00023983]
[1739243178605,0.5800096,97716.0,97715.0,0.00023983]
[1739243179011,0.6020096,97716.0,97715.0,0.00023983]
[1739243180054,0.6250096,97716.0,97715.0,0.00023983]
[1739243180249,0.9473096,97716.0,97715.0,0.00023983]
[1739243180633,0.173,97715.0,97712.0,0.0147407]
[1739243180837,0.48281365,97713.0,97712.0,0.01487395]
[1739243181036,0.50581365,97713.0,97712.0,0.01487395]
[1739243181257,0.51622108,97713.0,97712.0,0.01487395]
[1739243182613,0.53122108,97713.0,97712.0,0.01487395]
[1739243182939,0.63372473,97713.0,97712.0,0.01487395]
[1739243183936,0.96302473,97713.0,97712.0,0.01487395]
[1739243184139,0.94802473,97713.0,97712.0,0.01487395]
[1739243184434,0.96302473,97713.0,97712.0,0.01487395]
[1739243184881,0.94802473,97713.0,97712.0,0.01487395]
[1739243185076,0.96302473,97713.0,97712.0,0.01487395]
[1739243186270,0.86052108,97713.0,97712.0,0.01487395]
[1739243188547,0.86052108,97713.0,97712.0,0.01498065]
[1739243194607,0.86824108,97713.0,97712.0,0.01498065]
[1739243196285,0.90001812,97713.0,97712.0,0.01498065]
[1739243197213,0.92715709,97713.0,97712.0,0.01498065]
[1739243197512,1.00252177,97713.0,97712.0,0.01498065]
[1739243199148,1.00252177,97713.0,97693.0,0.0001067]
[1739243199149,0.380917,97709.0,97693.0,0.0001067]
[1739243199311,0.54233666,97709.0,97708.0,0.00015093]
[1739243199512,0.57571974,97709.0,97708.0,0.00015093]
[1739243199828,0.67822339,97709.0,97708.0,0.00015093]
[1739243200417,0.69322339,97709.0,97708.0,0.00015093]
[1739243200615,0.70022339,97709.0,97708.0,0.00015093]
[1739243201538,0.99538442,97709.0,97708.0,0.00015093]
[1739243202184,1.02252339,97709.0,97708.0,0.00015093]
[1739243202811,0.99538442,97709.0,97708.0,0.00015093]
[1739243203164,1.06812339,97709.0,97708.0,0.00015093]
[1739243203364,1.06812339,97709.0,97708.0,9.3e-07]
[1739243207767,1.07812339,97709.0,97708.0,9.3e-07]
[1739243208991,1.10156188,97709.0,97708.0,9.3e-07]
[1739243209497,1.04098442,97709.0,97708.0,9.3e-07]
[1739243209702,1.06812339,97709.0,97708.0,9.3e-07]
[1739243210555,0.84580077,97709.0,97708.0,9.3e-07]
[1739243211683,0.80020077,97709.0,97708.0,9.3e-07]
[1739243211889,0.79248077,97709.0,97708.0,9.3e-07]
[1739243212092,0.82320077,97709.0,97708.0,9.3e-07]
[1739243213425,0.82320077,97709.0,97708.0,0.00010763]
[1739243213640,0.9182085,97709.0,97708.0,0.00010763]
[1739243213839,0.9258885,97709.0,97708.0,0.00010763]
[1739243216239,0.9182085,97709.0,97708.0,0.00010763]
[1739243216439,0.9258885,97709.0,97708.0,0.00010763]
[1739243217956,0.92506974,97709.0,97708.0,0.00010763]
[1739243218586,0.92654974,97709.0,97708.0,0.00010763]
[1739243219468,0.30354,97694.0,97693.0,0.0001067]
[1739243219673,0.43639765,97694.0,97693.0,0.00024002]
[1739243219877,0.44677222,97694.0,97693.0,0.00024002]
[1739243220694,0.46077222,97694.0,97693.0,0.00024002]
[1739243220895,0.46777222,97694.0,97693.0,0.00024002]
[1739243221700,0.49967365,97694.0,97693.0,0.00024002]
[1739243222059,0.51974348,97694.0,97693.0,0.00024002]
[1739243222545,0.54274348,97694.0,97693.0,0.00024002]
[1739243223295,0.55309386,97694.0,97693.0,0.00024002]
[1739243224297,0.58023283,97694.0,97693.0,0.00024002]
[1739243225261,0.90253283,97694.0,97693.0,0.00024002]
[1739243225884,0.87539386,97694.0,97693.0,0.00024002]
[1739243229733,0.82971986,97694.0,97693.0,0.00024002]
[1739243230673,0.84503986,97694.0,97693.0,0.00024002]
[1739243231019,0.85271986,97694.0,97693.0,0.00024002]
[1739243231454,0.82971986,97694.0,97693.0,0.00024002]
[1739243231848,0.82203986,97694.0,97693.0,0.00024002]
[1739243232048,0.93222351,97694.0,97693.0,0.00024002]
[1739243232250,0.82971986,97694.0,97693.0,0.00024002]
[1739243232455,0.80197003,97694.0,97693.0,0.00024002]
[1739243232664,0.7700686,97694.0,97693.0,0.00024002]
[1739243233646,0.45617822,97694.0,97693.0,0.00024002]
[1739243233847,0.13387822,97694.0,97693.0,0.04594002]
[1739243234048,0.03137457,97694.0,97693.0,0.12414002]
[1739243234485,0.021,97694.0,97693.0,0.12414002]
[1739243234641,0.03090161,97694.0,97693.0,0.12414002]
[1739243234847,0.021,97694.0,97693.0,0.12414002]
[1739243235163,0.02390154,97694.0,97693.0,0.12414002]
[1739243235326,0.017,97694.0,97693.0,0.12414002]
[1739243235530,0.014,97694.0,97693.0,0.12414002]
[1739243236175,0.15,97703.0,97693.0,0.12414002]
[1739243236507,0.02390167,97694.0,97693.0,0.12414002]
[1739243236731,0.014,97694.0,97693.0,0.12414002]
[1739243237085,0.02,97695.0,97693.0,0.12414002]
[1739243237297,0.00990163,97694.0,97693.0,0.12414002]
[1739243237517,0.02,97695.0,97693.0,0.12414002]
[1739243237729,0.00990165,97694.0,97693.0,0.12414002]
[1739243238071,0.01690165,97694.0,97693.0,0.12414002]
[1739243239204,0.01490165,97694.0,97693.0,0.12414002]
[1739243239606,0.00990165,97694.0,97693.0,0.12414002]
[1739243239814,0.01390165,97694.0,97693.0,0.12414002]
[1739243240137,0.2699453,97694.0,97693.0,0.00024002]
[1739243240331,0.4159453,97694.0,97693.0,0.00024002]
[1739243240533,0.4199453,97694.0,97693.0,0.00024002]
[1739243240940,0.4219453,97694.0,97693.0,0.00024002]
[1739243241477,0.4239453,97694.0,97693.0,0.00024002]
[1739243244032,0.52644895,97694.0,97693.0,0.00024002]
[1739243245502,0.59504895,97694.0,97693.0,0.00024002]
[1739243246068,0.59104895,97694.0,97693.0,0.00024002]
[1739243246453,0.60504895,97694.0,97693.0,0.00024002]
[1739243247570,0.63687204,97694.0,97693.0,0.00024002]
[1739243248031,0.63287204,97694.0,97693.0,0.00024002]
[1739243248243,0.63987204,97694.0,97693.0,0.00024002]
[1739243248411,0.60804895,97694.0,97693.0,0.00024002]
[1739243249000,0.93034895,97694.0,97693.0,0.00024002]
[1739243250347,0.8278453,97694.0,97693.0,0.00024002]
[1739243251871,0.85966881,97694.0,97693.0,0.00024002]
[1739243256798,0.7899253,97694.0,97693.0,0.00024002]
[1739243258627,0.7592453,97694.0,97693.0,0.00024002]
[1739243261108,0.8648453,97694.0,97693.0,0.00024002]
[1739243261527,0.96734895,97694.0,97693.0,0.00024002]
[1739243261776,0.99917715,97694.0,97693.0,0.00024002]
[1739243263800,0.91657715,97694.0,97693.0,0.00024002]
[1739243268943,0.89242895,97694.0,97693.0,0.00024002]
[1739243269956,0.7899253,97694.0,97693.0,0.00024002]
[1739243270164,0.7669253,97694.0,97693.0,0.00024002]
[1739243271980,0.85858888,97694.0,97693.0,0.00024002]
[1739243274534,0.89045785,97694.0,97693.0,0.00024002]
[1739243276454,0.79879427,97694.0,97693.0,0.00024002]
[1739243277083,0.90129792,97694.0,97693.0,0.00024002]
[1739243280628,0.79879427,97694.0,97693.0,0.00024002]
[1739243281289,0.16527427,97694.0,97693.0,0.08154002]
[1739243281492,0.03090165,97694.0,97693.0,0.08154002]
[1739243282022,0.1334053,97694.0,97693.0,0.08154002]
[1739243282417,0.1194053,97694.0,97693.0,0.08154002]
[1739243282614,0.1124053,97694.0,97693.0,0.08154002]
[1739243283862,0.1234053,97694.0,97693.0,0.08154002]
[1739243284063,0.1284053,97694.0,97693.0,0.08154002]
[1739243284271,0.1174053,97694.0,97693.0,0.08154002]
[1739243284627,0.1124053,97694.0,97693.0,0.08154002]
[1739243285041,0.2709453,97694.0,97693.0,0.08154002]
[1739243285229,0.2819453,97694.0,97693.0,0.08154002]
[1739243285423,0.1284053,97694.0,97693.0,0.08154002]
[1739243285627,0.2709453,97694.0,97693.0,0.00024002]
[1739243285874,0.1174053,97694.0,97693.0,0.00024002]
[1739243286018,0.2709453,97694.0,97693.0,0.00024002]
[1739243286683,0.1174053,97694.0,97693.0,0.00024002]
[1739243287674,0.02590165,97694.0,97693.0,0.00024002]
[1739243288961,0.02590165,97694.0,97693.0,0.10024002]
[1739243290673,0.016,97694.0,97693.0,0.10024002]
[1739243290878,0.02546088,97694.0,97693.0,0.10024002]
[1739243292648,0.016,97694.0,97693.0,0.10024002]
[1739243292827,0.02546088,97694.0,97693.0,0.10024002]
[1739243293598,0.02546088,97694.0,97693.0,0.20024002]
[1739243295402,0.02546088,97694.0,97693.0,0.28124002]
[1739243295869,0.02546088,97694.0,97693.0,0.43478202]
[1739243295870,0.016,97694.0,97693.0,0.43478202]
[1739243297356,0.011,97694.0,97693.0,0.43478202]
[1739243297754,0.013,97694.0,97693.0,0.43478202]
[1739243297950,0.00022408,97714.0,97696.0,0.153536]
[1739243298196,0.15374208,97708.0,97696.0,0.153537]
[1739243298656,0.153522,97706.0,97694.0,0.153539]
[1739243298851,0.00946924,97707.0,97695.0,0.153537]
[1739243299054,0.00946917,97705.0,97693.0,0.28124002]
[1739243299258,0.00946926,97706.0,97695.0,0.153537]
[1739243299420,0.00946926,97706.0,97696.0,0.153535]
[1739243299620,0.02,97699.0,97696.0,0.153535]
[1739243299965,0.02,97699.0,97695.0,0.00102338]
[1739243299966,0.02,97699.0,97695.0,0.153538]
[1739243300745,0.02,97699.0,97697.0,0.153535]
[1739243301126,0.02,97699.0,97694.0,0.00102339]
[1739243301332,0.02,97699.0,97696.0,0.153537]
[1739243301954,0.024,97699.0,97696.0,0.153537]
[1739243302155,0.024,97699.0,97696.0,0.15456039]
[1739243302366,0.02,97699.0,97696.0,0.153537]
[1739243302579,0.024,97699.0,97696.0,0.00102339]
[1739243302749,0.031,97699.0,97698.0,0.153534]
[1739243303724,0.024,97699.0,97698.0,0.15455738]
[1739243303977,0.02,97699.0,97698.0,0.23555738]
[1739243304225,0.02,97699.0,97698.0,0.39463765]
[1739243304464,0.004,97699.0,97698.0,0.39463765]
[1739243304610,0.004,97699.0,97698.0,0.41763765]
[1739243304833,0.004,97699.0,97698.0,0.44564689]
[1739243305047,0.00022408,97708.0,97707.0,0.16352]
[1739243305240,0.00022408,97708.0,97707.0,0.24554313]
[1739243305437,0.00022408,97708.0,97707.0,0.23452]
[1739243305816,0.00022408,97708.0,97707.0,0.24452]
[1739243306156,0.00022408,97708.0,97707.0,0.23452]
[1739243306583,0.00822408,97708.0,97707.0,0.23452]
[1739243307853,0.00822408,97708.0,97707.0,0.081]
[1739243308061,0.01222408,97708.0,97707.0,0.15352]
[1739243308784,0.01222408,97708.0,97700.0,0.081]
[1739243309166,0.01222408,97708.0,97701.0,0.0010233]
[1739243309360,0.01222408,97708.0,97695.0,0.00102332]
[1739243309705,0.00907141,97707.0,97698.0,0.204711]
[1739243309882,0.01222408,97708.0,97700.0,0.15353]
[1739243310268,0.00907141,97707.0,97700.0,0.15353]
[1739243310650,0.00907141,97707.0,97701.0,0.00102334]
[1739243310922,0.00822408,97708.0,97703.0,0.1261]
[1739243311131,0.01222408,97708.0,97707.0,0.15352]
[1739243311334,0.00022408,97708.0,97707.0,0.15454316]
[1739243311738,0.00822408,97708.0,97707.0,0.15454316]
[1739243312176,0.00022408,97708.0,97707.0,0.15454316]
[1739243312352,0.00122408,97708.0,97707.0,0.15454316]
[1739243312559,0.00322408,97708.0,97707.0,0.15454316]
[1739243313804,0.00322408,97708.0,97704.0,0.153524]
[1739243313961,0.00322408,97708.0,97704.0,0.00102329]
[1739243314370,0.00906966,97707.0,97705.0,0.15454523]
[1739243314571,0.00222408,97708.0,97705.0,0.00102323]
[1739243314771,0.00022408,97708.0,97703.0,0.153525]
[1739243314971,0.00906966,97707.0,97694.0,0.079]
[1739243315196,0.00322408,97708.0,97704.0,0.153523]
[1739243315393,0.001,97707.0,97705.0,0.153523]
[1739243315617,0.001,97707.0,97694.0,0.079]
[1739243315816,0.00322408,97708.0,97698.0,0.153532]
[1739243315817,0.00222408,97708.0,97698.0,0.153532]
[1739243316034,0.00322408,97708.0,97694.0,0.08944516]
[1739243316236,0.00122408,97708.0,97700.0,0.15353]
[1739243316449,0.00122408,97708.0,97699.0,0.153531]
[1739243316595,0.00906966,97707.0,97700.0,0.15353]
[1739243316808,0.00122408,97708.0,97700.0,0.15353]
[1739243317004,0.00906964,97706.0,97698.0,0.00102333]
[1739243317234,0.00906966,97707.0,97701.0,0.153528]
[1739243317474,0.00322408,97708.0,97701.0,0.153528]
[1739243317659,0.001,97707.0,97701.0,0.153528]
[1739243317857,0.00906429,97707.0,97699.0,0.153532]
[1739243318083,0.00222408,97708.0,97699.0,0.153531]
[1739243318257,0.01006427,97706.0,97699.0,0.153531]
[1739243318491,0.00906427,97706.0,97693.0,0.20024002]
[1739243318679,0.00906427,97706.0,97693.0,0.35378102]
[1739243319060,0.001,97707.0,97694.0,0.00102339]
[1739243319262,0.00906054,97705.0,97697.0,0.153534]
[1739243319467,0.001,97706.0,97697.0,0.15455738]
[1739243319670,0.00906053,97704.0,97697.0,0.00102338]
[1739243319844,0.001,97706.0,97698.0,0.00102335]
[1739243319845,0.00906054,97705.0,97698.0,0.00102335]
[1739243320049,0.001,97706.0,97694.0,0.15354]
[1739243320257,0.00906054,97705.0,97700.0,0.0001066]
[1739243320658,0.153524,97704.0,97700.0,0.0001066]
[1739243320860,0.00906053,97703.0,97700.0,0.0001066]
[1739243321060,0.02820342,97703.0,97700.0,0.0001066]
[1739243321911,0.02820342,97703.0,97700.0,0.0021066]
[1739243322406,0.01914289,97702.0,97700.0,0.0001066]
[1739243322713,0.00906049,97701.0,97700.0,0.0021066]
[1739243323118,0.16258949,97701.0,97700.0,0.0021066]
[1739243323703,0.18173238,97701.0,97700.0,0.0021066]
[1739243323907,0.18173238,97701.0,97700.0,0.0001066]
[1739243324675,0.18573238,97701.0,97700.0,0.0001066]
[1739243325654,0.19473238,97701.0,97700.0,0.0001066]
[1739243326163,0.26733803,97701.0,97700.0,0.0001066]
[1739243326499,0.19473238,97701.0,97700.0,0.0001066]
[1739243328737,0.04120338,97701.0,97700.0,0.0001066]
[1739243330891,0.03214289,97701.0,97700.0,0.1536376]
[1739243332182,0.03214289,97701.0,97700.0,0.15466098]
[1739243333368,0.03214289,97701.0,97700.0,0.1536376]
[1739243334717,0.03214289,97701.0,97700.0,0.15466093]
[1739243335643,0.03214289,97701.0,97700.0,0.1536376]
[1739243337666,0.03214289,97701.0,97700.0,0.0001066]
[1739243338267,0.04120024,97701.0,97700.0,0.0001066]
[1739243338682,0.03214289,97701.0,97700.0,0.0001066]
[1739243339244,0.03214289,97701.0,97700.0,0.1536376]
[1739243339847,0.03214289,97701.0,97700.0,0.0001066]
[1739243341021,0.03214289,97701.0,97700.0,0.1536376]
[1739243341428,0.03214289,97701.0,97700.0,0.0001066]
[1739243342607,0.04120509,97701.0,97700.0,0.0001066]
[1739243347870,0.03214289,97701.0,97700.0,0.0001066]
[1739243348867,0.04120516,97701.0,97700.0,0.0001066]
[1739243350538,0.12140516,97701.0,97700.0,0.0001066]
[1739243350731,0.27493416,97701.0,97700.0,0.0001066]
[1739243354105,0.25579127,97701.0,97700.0,0.0001066]
[1739243354739,0.10226227,97701.0,97700.0,0.0001066]
[1739243357730,0.25579127,97701.0,97700.0,0.0001066]
[1739243357995,0.10226227,97701.0,97700.0,0.0001066]
[1739243358706,0.25579127,97701.0,97700.0,0.0001066]
[1739243358915,0.10226227,97701.0,97700.0,0.0001066]
[1739243359966,0.25579127,97701.0,97700.0,0.0001066]
[1739243360166,0.28139281,97701.0,97700.0,0.0001066]
[1739243360606,0.35829492,97701.0,97700.0,0.0001066]
[1739243362008,0.20476592,97701.0,97700.0,0.0001066]
[1739243362214,0.35829492,97701.0,97700.0,0.0001066]
[1739243364071,0.20476592,97701.0,97700.0,0.0001066]
[1739243364278,0.12456592,97701.0,97700.0,0.0001066]
[1739243365214,0.27809492,97701.0,97700.0,0.0001066]
[1739243366456,0.12456592,97701.0,97700.0,0.0001066]
[1739243367186,0.27809492,97701.0,97700.0,0.0001066]
[1739243368290,0.30845678,97701.0,97700.0,0.0001066]
[1739243368728,0.53755678,97701.0,97700.0,0.0001066]
[1739243369669,0.50719492,97701.0,97700.0,0.0001066]
[1739243375387,0.50319492,97701.0,97700.0,0.0001066]
[1739243375589,0.49419492,97701.0,97700.0,0.0001066]
[1739243375792,0.50019492,97701.0,97700.0,0.0001066]
[1739243375991,0.49419492,97701.0,97700.0,0.0001066]
[1739243376192,0.50019492,97701.0,97700.0,0.0001066]
[1739243376805,0.61669857,97701.0,97700.0,0.0001066]
[1739243377242,0.60269857,97701.0,97700.0,0.0001066]
[1739243377557,0.65189857,97701.0,97700.0,0.0001066]
[1739243377756,0.64589857,97701.0,97700.0,0.0001066]
[1739243378058,0.66489857,97701.0,97700.0,0.0001066]
[1739243378438,0.65189857,97701.0,97700.0,0.0001066]
[1739243378841,0.66589857,97701.0,97700.0,0.0001066]
[1739243383138,0.65189857,97701.0,97700.0,0.0001066]
[1739243383315,0.66589857,97701.0,97700.0,0.0001066]
[1739243383737,0.65989857,97701.0,97700.0,0.0001066]
[1739243383913,0.66689857,97701.0,97700.0,0.0001066]
[1739243387740,0.56439492,97701.0,97700.0,0.0001066]
[1739243391756,0.59629379,97701.0,97700.0,0.0001066]
[1739243392294,0.56439492,97701.0,97700.0,0.0001066]
[1739243396060,0.43609492,97701.0,97700.0,0.0001066]
[1739243396263,0.33359127,97701.0,97700.0,0.0001066]
[1739243401138,0.18359127,97701.0,97700.0,0.0001066]
[1739243403104,0.21919034,97701.0,97700.0,0.0001066]
[1739243403681,0.28609492,97701.0,97700.0,0.0001066]
[1739243404712,0.18359127,97701.0,97700.0,0.0001066]
[1739243405174,0.03006227,97701.0,97700.0,0.0001066]
[1739243406176,0.03006227,97701.0,97700.0,0.1001066]
[1739243406416,0.021,97701.0,97700.0,0.3400376]
[1739243406573,0.021,97701.0,97700.0,0.45301443]
[1739243406774,0.021,97701.0,97700.0,0.46301443]
[1739243407385,0.014,97701.0,97700.0,0.46301443]
[1739243407576,0.021,97701.0,97700.0,0.46301443]
[1739243407922,0.00022408,97708.0,97707.0,0.15352]
[1739243408255,0.00022408,97708.0,97707.0,0.23094324]
[1739243408384,0.00022408,97708.0,97707.0,0.22992]
[1739243409196,0.00122408,97708.0,97707.0,0.22992]
[1739243410409,0.00322408,97708.0,97707.0,0.22992]
[1739243412824,0.00322408,97708.0,97707.0,0.34242365]
[1739243412974,0.00322408,97708.0,97707.0,0.39032365]
[1739243413407,0.00322408,97708.0,97707.0,0.40032365]
[1739243413619,0.00322408,97708.0,97707.0,0.42332365]
[1739243413620,0.00122408,97708.0,97707.0,0.42332365]
[1739243414051,0.00022408,97708.0,97707.0,0.42532365]
[1739243414206,0.00022408,97708.0,97707.0,0.57532365]
[1739243414410,0.00122408,97708.0,97707.0,0.57532365]
[1739243414616,0.00022408,97708.0,97707.0,0.57532365]
[1739243415012,0.00122408,97708.0,97707.0,0.57632365]
[1739243415217,0.00122408,97708.0,97707.0,0.57532365]
[1739243415416,0.00222408,97708.0,97707.0,0.57632365]
[1739243416211,0.00222408,97708.0,97707.0,0.89792365]
[1739243416615,0.00222408,97708.0,97707.0,0.89592365]
[1739243416857,0.00022408,97708.0,97707.0,0.89492365]
[1739243417060,0.00322408,97708.0,97707.0,0.89892365]
[1739243417373,0.00322408,97708.0,97707.0,0.89592365]
[1739243417537,0.00122408,97708.0,97707.0,0.89592365]
[1739243417734,0.00322408,97708.0,97707.0,0.89892365]
[1739243417944,0.00222408,97708.0,97707.0,0.89792365]
[1739243418148,0.00322408,97708.0,97707.0,0.89892365]
[1739243421643,0.00322408,97708.0,97707.0,1.43302365]
[1739243422976,0.00322408,97708.0,97707.0,1.43313025]
[1739243423636,8e-08,97714.0,97713.0,0.32351]
[1739243423836,8e-08,97714.0,97713.0,1.43201365]
[1739243424829,0.00200008,97714.0,97713.0,1.43601365]
[1739243425406,0.00100008,97714.0,97713.0,1.43501365]
[1739243425571,0.00200008,97714.0,97713.0,1.43601365]
[1739243426401,0.00200008,97714.0,97713.0,1.44607284]
[1739243427388,8e-08,97714.0,97713.0,1.44607284]
[1739243427924,8e-08,97714.0,97713.0,1.44307284]
[1739243428250,0.00100008,97714.0,97713.0,1.45807284]
[1739243429070,0.00100008,97714.0,97713.0,1.47880053]
[1739243429501,8e-08,97714.0,97713.0,1.46380053]
[1739243429975,0.00100008,97714.0,97713.0,1.45580053]
[1739243430176,0.048,97736.0,97735.0,0.153476]
[1739243430614,0.048,97736.0,97730.0,0.01]
[1739243430839,0.048,97736.0,97730.0,0.15450501]
[1739243431017,0.048,97736.0,97728.0,0.01]
[1739243431217,0.01076396,97735.0,97729.0,0.153485]
[1739243431421,0.048,97736.0,97724.0,0.00102306]
[1739243431422,0.081,97734.0,97724.0,0.00102306]
[1739243431578,0.01076396,97733.0,97725.0,0.204655]
[1739243431925,0.081,97734.0,97726.0,0.153489]
[1739243432101,0.081,97734.0,97724.0,0.204658]
[1739243432308,0.01076398,97733.0,97721.0,0.153498]
[1739243432509,0.01076398,97733.0,97723.0,0.153494]
[1739243433138,0.01076398,97733.0,97730.0,0.007]
[1739243433492,0.01076398,97733.0,97728.0,0.003]
[1739243433697,0.01076398,97733.0,97723.0,0.153494]
[1739243433896,0.01076398,97733.0,97723.0,0.002]
[1739243434103,0.01076398,97733.0,97723.0,0.003]
[1739243434306,0.01076398,97733.0,97723.0,0.002]
[1739243434514,0.01076398,97733.0,97728.0,0.001]
[1739243434712,0.01076398,97733.0,97728.0,0.00402314]
[1739243434915,0.01076398,97733.0,97728.0,0.00302314]
[1739243435116,0.01076398,97733.0,97728.0,0.002]
[1739243435933,0.01076398,97733.0,97726.0,0.153489]
[1739243436270,0.01098785,97733.0,97727.0,0.00102314]
[1739243436488,0.01098785,97733.0,97725.0,0.204654]
[1739243436660,0.01098785,97733.0,97727.0,0.153488]
[1739243436876,0.01098785,97733.0,97728.0,0.001]
[1739243437060,0.00022387,97733.0,97727.0,0.153488]
[1739243437264,0.00022387,97733.0,97726.0,0.15549]
[1739243437462,0.00022387,97733.0,97727.0,0.001]
[1739243437646,0.00022387,97733.0,97726.0,0.15349]
[1739243438174,0.00022387,97733.0,97728.0,0.003]
[1739243438395,0.00022387,97733.0,97728.0,0.002]
[1739243438630,0.01076147,97732.0,97728.0,0.002]
[1739243438967,0.00022387,97733.0,97728.0,0.002]
[1739243439170,0.01076143,97732.0,97728.0,0.002]
[1739243439399,0.00022387,97733.0,97728.0,0.002]
[1739243439601,0.01076143,97732.0,97728.0,0.002]
[1739243439803,0.00022387,97733.0,97728.0,0.002]
[1739243440175,0.01076143,97732.0,97728.0,0.002]
[1739243440320,0.01076143,97732.0,97728.0,0.003]
[1739243440519,0.00022387,97733.0,97728.0,0.001]
[1739243441663,0.00022387,97733.0,97730.0,0.153483]
[1739243441986,0.00022387,97733.0,97728.0,0.001]
[1739243441987,0.00022387,97733.0,97729.0,0.153485]
[1739243442390,0.00022387,97733.0,97730.0,0.00102311]
[1739243442689,0.00022387,97733.0,97732.0,0.15348]
[1739243442932,0.00022387,97733.0,97729.0,0.204645]
[1739243443155,0.00022387,97733.0,97730.0,0.153482]
[1739243443358,0.00022387,97733.0,97729.0,0.204645]
[1739243443551,0.00022387,97733.0,97731.0,0.153481]
[1739243444790,0.00022387,97733.0,97730.0,0.153482]
[1739243445000,0.00022387,97733.0,97721.0,0.358162]
[1739243445147,0.00022387,97733.0,97732.0,0.15348]
[1739243446292,0.00022387,97733.0,97731.0,0.001]
[1739243446508,0.00022387,97733.0,97732.0,0.15348]
[1739243447429,0.00022387,97733.0,97732.0,0.15648]
[1739243456021,0.00022387,97733.0,97732.0,0.003]
[1739243456614,0.14009372,97733.0,97732.0,0.003]
[1739243461686,0.39607637,97733.0,97732.0,0.003]
[1739243463192,0.39607637,97733.0,97720.0,0.00013332]
[1739243463193,0.1286,97732.0,97720.0,0.00013332]
[1739243463392,0.1286,97723.0,97720.0,0.00013332]
[1739243463614,0.153498,97721.0,97720.0,0.00013332]
[1739243464093,0.16435249,97721.0,97720.0,0.00013332]
[1739243465055,0.23457894,97721.0,97720.0,0.00013332]
[1739243465821,0.01185449,97721.0,97720.0,0.00013332]
[1739243466180,0.16635249,97721.0,97720.0,0.00013332]
[1739243466731,0.01285449,97721.0,97720.0,0.00013332]
[1739243466900,0.16635249,97721.0,97720.0,0.00013332]
[1739243467318,0.01285449,97721.0,97720.0,0.00013332]
[1739243469341,0.16635249,97721.0,97720.0,0.00013332]
[1739243469542,0.01285449,97721.0,97720.0,0.00013332]
[1739243470088,0.16635249,97721.0,97720.0,0.00013332]
[1739243470290,0.23677834,97721.0,97720.0,0.00013332]
[1739243471545,0.54745614,97721.0,97720.0,0.00013332]
[1739243472300,0.54645614,97721.0,97720.0,0.00013332]
[1739243472492,0.54545614,97721.0,97720.0,0.00013332]
[1739243472730,0.55345614,97721.0,97720.0,0.00113332]
[1739243473033,0.54545614,97721.0,97720.0,0.00013332]
[1739243473607,0.55345614,97721.0,97720.0,0.00113332]
[1739243473828,0.55645614,97721.0,97720.0,0.00113332]
[1739243474256,0.65405765,97721.0,97720.0,0.00113332]
[1739243474457,0.55645614,97721.0,97720.0,0.00113332]
[1739243479998,0.55630134,97721.0,97720.0,0.00113332]
[1739243481754,0.55652521,97721.0,97720.0,0.00113332]
[1739243481908,0.30052356,97721.0,97720.0,0.00113332]
[1739243482110,0.22082356,97721.0,97720.0,0.00113332]
[1739243482549,0.32542156,97721.0,97720.0,0.00113332]
[1739243494541,0.42686052,97721.0,97720.0,0.00123992]
[1739243495500,0.32542156,97721.0,97720.0,0.00123992]
[1739243505161,0.17542156,97721.0,97720.0,0.00123992]
[1739243507580,0.35602521,97721.0,97720.0,0.00123992]
[1739243507791,0.40272521,97721.0,97720.0,0.00123992]
[1739243521203,0.02192356,97721.0,97720.0,0.00123992]
[1739243524210,0.17542156,97721.0,97720.0,0.00123992]
[1739243524891,0.02192356,97721.0,97720.0,0.00123992]
[1739243528842,0.02192356,97721.0,97720.0,0.00226319]
[1739243529069,0.02192356,97721.0,97720.0,0.00123992]
[1739243529294,0.01122387,97721.0,97720.0,0.00123992]
[1739243529938,0.01122387,97721.0,97720.0,0.15473892]
[1739243530258,0.01122387,97721.0,97720.0,0.15576211]
[1739243532198,0.00322387,97721.0,97720.0,0.15476211]
[1739243532789,0.01122387,97721.0,97720.0,0.15576211]
[1739243534151,0.00822387,97721.0,97720.0,0.15576211]
[1739243534794,0.00022387,97721.0,97720.0,0.15476211]
[1739243536217,0.00022387,97721.0,97720.0,0.15776211]
[1739243536871,0.00022387,97721.0,97720.0,0.15876211]
[1739243538004,0.00022387,97721.0,97720.0,0.15576211]
[1739243538186,0.00022387,97721.0,97720.0,0.15776211]
[1739243538522,0.00022387,97721.0,97720.0,0.15876211]
[1739243539552,0.00022387,97721.0,97720.0,0.00423992]
[1739243539763,0.00022387,97721.0,97720.0,0.15773892]
[1739243540164,0.00022387,97721.0,97720.0,0.15673892]
[1739243540371,0.00022387,97721.0,97720.0,0.15776203]
[1739243540579,0.00122387,97721.0,97720.0,0.15776203]
[1739243540979,0.00022387,97721.0,97720.0,0.15776203]
[1739243541353,0.00122387,97721.0,97720.0,0.15776203]
[1739243541588,0.00122387,97721.0,97720.0,0.15476203]
[1739243542353,0.00022387,97721.0,97720.0,0.15476203]
[1739243542526,0.00022387,97721.0,97720.0,0.15776203]
[1739243543948,0.00022387,97721.0,97720.0,0.15476203]
[1739243544171,0.00022387,97721.0,97720.0,0.15876203]
[1739243544799,0.00022387,97721.0,97720.0,0.15576203]
[1739243545122,0.00022387,97721.0,97720.0,0.15876203]
[1739243551988,0.00022387,97721.0,97720.0,0.35286568]
[1739243552219,0.00022387,97721.0,97720.0,0.37484257]
[1739243552415,0.00022387,97721.0,97720.0,0.69644257]
[1739243555472,0.00022387,97721.0,97720.0,0.70644257]
[1739243556676,0.00022387,97721.0,97720.0,0.70344257]
[1739243556887,0.00022387,97721.0,97720.0,0.70244257]